fUSD/lending_fUSD_20260413
["ID","MTS","AMOUNT","RATE_DAILY","PERIOD"]
[420429100,1776094999308,-260.910023,0.00041096,120]
[420429101,1776094999392,-1112.854773,0.00041096,120]
[420429102,1776094999482,-1067.469626,0.00041096,120]
[420429103,1776094999873,-779.527835,0.00041096,120]
[420429104,1776094999958,-706.817188,0.00041096,120]
[420429105,1776095000039,-289.964368,0.00041096,120]
[420429106,1776095000117,-3483.698738,0.00041096,120]
[420429107,1776095000198,-260.910023,0.00041096,120]
[420429108,1776095000286,-1112.854773,0.00041096,120]
[420429109,1776095000450,-1067.469626,0.00041096,120]
[420429110,1776095000542,-151.0,0.00041096,120]
[420429111,1776095000632,-706.817188,0.00041096,120]
[420429112,1776095000715,-165.630101,0.00041096,30]
[420429113,1776095000797,-3483.698738,0.00041096,120]
[420429114,1776095000875,-790.81611,0.00041096,120]
[420429115,1776095000959,-151.0,0.00041096,120]
[420429116,1776095001043,-1067.469626,0.00041096,120]
[420429117,1776095001122,-1935.620035,0.00041096,120]
[420429118,1776095001208,-1112.854773,0.00041096,120]
[420429119,1776095001300,-238.936369,0.00041096,30]
[420429120,1776095001411,-165.630101,0.00041096,30]
[420429121,1776095001527,-3483.698738,0.00041096,120]
[420429122,1776095001611,-553.258396,0.00041096,120]
[420429123,1776095001710,-790.81611,0.00041096,120]
[420429124,1776095001809,-475.962465,0.00041096,120]
[420429125,1776095001892,-1935.620035,0.00041096,120]
[420429126,1776095001972,-238.936369,0.00041096,30]
[420429127,1776095002053,-1112.854773,0.00041096,120]
[420429128,1776095002134,-165.630101,0.00041096,30]
[420429129,1776095002218,-553.258396,0.00041096,120]
[420429130,1776095002299,-790.81611,0.00041096,120]
[420429131,1776095002415,-1433.241695,0.00041096,120]
[420429132,1776095002612,-475.962465,0.00041096,120]
[420429133,1776095002730,-238.936369,0.00041096,30]
[420429134,1776095002896,-1935.620035,0.00041096,120]
[420429135,1776095002996,-553.258396,0.00041096,120]
[420429136,1776095003095,-151.0,0.00041096,120]
[420429137,1776095003179,-165.630101,0.00041096,30]
[420429138,1776095003272,-846.335303,0.00041096,120]
[420429139,1776095003381,-790.81611,0.00041096,120]
[420429140,1776095003525,-1433.241695,0.00041096,120]
[420429141,1776095003655,-207.743311,0.00041096,31]
[420429142,1776095003748,-475.962465,0.00041096,120]
[420429143,1776095003831,-1935.620035,0.00041096,120]
[420429144,1776095003910,-238.936369,0.00041096,30]
[420429145,1776095003987,-553.258396,0.00041096,120]
[420429146,1776095004066,-151.0,0.00041096,120]
[420429147,1776095004148,-846.335303,0.00041096,120]
[420429148,1776095004233,-1433.241695,0.00041096,120]
[420429149,1776095004321,-207.743311,0.00041096,31]
[420429150,1776095004410,-475.962465,0.00041096,120]
[420429151,1776095004527,-207.743311,0.00041096,31]
[420429152,1776095004651,-846.335303,0.00041096,120]
[420429153,1776095004737,-1433.241695,0.00041096,120]
[420429154,1776095004825,-151.0,0.00041096,120]
[420429155,1776095004914,-151.0,0.00041096,120]
[420429156,1776095004999,-916.705542,0.00041096,120]
[420429157,1776095005079,-151.0,0.00041096,120]
[420429158,1776095005158,-207.743311,0.00041096,31]
[420429159,1776095005238,-846.335303,0.00041096,120]
[420429160,1776095005326,-151.0,0.00041096,120]
[420429161,1776095005414,-916.705542,0.00041096,120]
[420429162,1776095005507,-151.0,0.00041096,120]
[420429163,1776095005596,-151.0,0.00041096,120]
[420429164,1776095005679,-151.0,0.00041096,120]
[420429165,1776095005762,-151.0,0.00041096,120]
[420429166,1776095005844,-151.0,0.00041096,120]
[420429167,1776095005924,-916.705542,0.00041096,120]
[420429168,1776095006007,-151.0,0.00041096,120]
[420429169,1776095006084,-212.850859,0.00041096,120]
[420429170,1776095006165,-151.0,0.00041096,120]
[420429171,1776095006249,-916.705542,0.00041096,120]
[420429172,1776095006330,-184.568765,0.00041096,120]
[420429173,1776095006419,-212.850859,0.00041096,120]
[420429174,1776095006511,-212.850859,0.00041096,120]
[420429175,1776095006622,-212.850859,0.00041096,120]
[420429176,1776095006717,-2951.738469,0.00041096,120]
[420429177,1776095006822,-315.995654,0.00041096,120]
[420429178,1776095006912,-151.0,0.00041096,120]
[420429179,1776095007015,-151.0,0.00041096,120]
[420429180,1776095007101,-2951.738469,0.00041096,120]
[420429181,1776095007182,-315.995654,0.00041096,120]
[420429182,1776095007265,-151.0,0.00041096,120]
[420429183,1776095007353,-151.0,0.00041096,120]
[420429184,1776095007445,-2951.738469,0.00041096,120]
[420429185,1776095007542,-315.995654,0.00041096,120]
[420429186,1776095007664,-2951.738469,0.00041096,120]
[420429187,1776095007753,-315.995654,0.00041096,120]
[420429188,1776095007846,-274.016314,0.00041096,120]
[420429189,1776095007924,-151.0,0.00041096,120]
[420429190,1776095008011,-274.016314,0.00041096,120]
[420429191,1776095008101,-151.0,0.00041096,120]
[420429192,1776095008194,-245.839496,0.00041096,120]
[420429193,1776095008278,-274.016314,0.00041096,120]
[420429194,1776095008360,-151.0,0.00041096,120]
[420429195,1776095008448,-204.983743,0.00041096,120]
[420429196,1776095008536,-462.683087,0.00041096,120]
[420429197,1776095008639,-245.839496,0.00041096,120]
[420429198,1776095008746,-274.016314,0.00041096,120]
[420429199,1776095008838,-151.0,0.00041096,120]
[420429200,1776095008937,-525.426642,0.00041096,120]
[420429201,1776095009027,-204.983743,0.00041096,120]
[420429202,1776095009109,-462.683087,0.00041096,120]
[420429203,1776095009191,-245.839496,0.00041096,120]
[420429204,1776095009283,-151.0,0.00041096,120]
[420429205,1776095009387,-525.426642,0.00041096,120]
[420429206,1776095009473,-204.983743,0.00041096,120]
[420429207,1776095009560,-201.218761,0.00041096,120]
[420429208,1776095009668,-245.839496,0.00041096,120]
[420429209,1776095009945,-462.683087,0.00041096,120]
[420429210,1776095010058,-1302.21989,0.00041096,120]
[420429211,1776095010206,-167.218475,0.00041096,120]
[420429212,1776095010326,-151.0,0.00041096,120]
[420429213,1776095010446,-525.426642,0.00041096,120]
[420429214,1776095010526,-204.983743,0.00041096,120]
[420429215,1776095010614,-201.218761,0.00041096,120]
[420429216,1776095010803,-462.683087,0.00041096,120]
[420429217,1776095011010,-1302.21989,0.00041096,120]
[420429218,1776095011146,-151.0,0.00041096,120]
[420429219,1776095011320,-489.214657,0.00041096,120]
[420429220,1776095011401,-164.746002,0.00041096,120]
[420429221,1776095011853,-151.0,0.00041096,120]
[420429222,1776095011941,-525.426642,0.00041096,120]
[420429223,1776095012018,-151.0,0.00041096,120]
[420429224,1776095012102,-201.218761,0.00041096,120]
[420429225,1776095012188,-1302.21989,0.00041096,120]
[420429226,1776095012267,-151.0,0.00041096,120]
[420429227,1776095012346,-489.214657,0.00041096,120]
[420429228,1776095012421,-151.0,0.00041096,120]
[420429229,1776095012495,-151.0,0.00041096,120]
[420429230,1776095012566,-201.218761,0.00041096,120]
[420429231,1776095012641,-1302.21989,0.00041096,120]
[420429232,1776095012715,-489.214657,0.00041096,120]
[420429233,1776095012788,-1321.994922,0.00041096,120]
[420429234,1776095012867,-151.0,0.00041096,120]
[420429235,1776095012947,-489.214657,0.00041096,120]
[420429236,1776095013032,-1321.994922,0.00041096,120]
[420429237,1776095013120,-151.0,0.00041096,120]
[420429238,1776095013208,-151.0,0.00041096,120]
[420429239,1776095013290,-1321.994922,0.00041096,120]
[420429240,1776095013384,-160.287084,0.00041096,120]
[420429241,1776095013476,-1321.994922,0.00041096,120]
[420429242,1776095013554,-575.220683,0.00041096,120]
[420429243,1776095013632,-167.126796,0.00041096,120]
[420429244,1776095013711,-380.851503,0.00041096,120]
[420429245,1776095013790,-575.220683,0.00041096,120]
[420429246,1776095013871,-167.126796,0.00041096,120]
[420429247,1776095013963,-380.851503,0.00041096,120]
[420429248,1776095014044,-575.220683,0.00041096,120]
[420429249,1776095014136,-167.126796,0.00041096,120]
[420429250,1776095014235,-380.851503,0.00041096,120]
[420429251,1776095014322,-575.220683,0.00041096,120]
[420429252,1776095014407,-167.126796,0.00041096,120]
[420429253,1776095014506,-380.851503,0.00041096,120]
[420429254,1776095014598,-538.053629,0.00041096,120]
[420429255,1776095014680,-538.053629,0.00041096,120]
[420429256,1776095014766,-1166.743106,0.00041096,120]
[420429257,1776095014864,-538.053629,0.00041096,120]
[420429258,1776095014964,-1166.743106,0.00041096,120]
[420429259,1776095015068,-538.053629,0.00041096,120]
[420429260,1776095015167,-151.0,0.00041096,120]
[420429261,1776095015255,-2329.903026,0.00041096,120]
[420429262,1776095015350,-151.0,0.00041096,120]
[420429263,1776095015443,-1166.743106,0.00041096,120]
[420429264,1776095015554,-205.36151,0.00041096,120]
[420429265,1776095015658,-253.359065,0.00041096,120]
[420429266,1776095015748,-2329.903026,0.00041096,120]
[420429267,1776095015845,-1166.743106,0.00041096,120]
[420429268,1776095015932,-205.36151,0.00041096,120]
[420429269,1776095016016,-253.359065,0.00041096,120]
[420429271,1776095016092,-2329.903026,0.00041096,120]
[420429272,1776095016179,-747.800508,0.00041096,120]
[420429273,1776095016271,-205.36151,0.00041096,120]
[420429274,1776095016388,-253.359065,0.00041096,120]
[420429275,1776095016478,-2329.903026,0.00041096,120]
[420429276,1776095016570,-747.800508,0.00041096,120]
[420429277,1776095016686,-205.36151,0.00041096,120]
[420429278,1776095016845,-253.359065,0.00041096,120]
[420429279,1776095016931,-747.800508,0.00041096,120]
[420429280,1776095017033,-151.0,0.00041096,120]
[420429281,1776095017210,-747.800508,0.00041096,120]
[420429282,1776095017575,-151.0,0.00041096,120]
[420429283,1776095017718,-151.0,0.00041096,120]
[420429284,1776095017826,-151.0,0.00041096,120]
[420429285,1776095017924,-202.53000001,0.00041111,120]
[420429286,1776095018027,-500.0,0.00041151,120]
[420429287,1776095018129,-200.0,0.0004153,120]
[420429288,1776095018212,-414.47534853,0.0004178,120]
[420429289,1776095018302,-500.0,0.00041973,120]
[420429290,1776095018384,-1784.75,0.00042,30]
[420429291,1776095018462,-438.24,0.00042,30]
[420429292,1776095018541,-2000.0,0.00042,60]
[420429293,1776095018618,-500.0,0.00042,120]
[420429294,1776095018694,-1048.0,0.00042,30]
[420429295,1776095018775,-250.0,0.00042166,91]
[420429296,1776095018854,-150.0,0.00042173,120]
[420429297,1776095018930,-4288.99,0.0004218,90]
[420429298,1776095019006,-500.0,0.00042275,64]
[420429299,1776095019085,-250.0,0.00042494,98]
[420429300,1776095019162,-2000.0,0.000425,60]
[420429301,1776095019238,-500.0,0.000425,120]
[420429302,1776095019316,-345.5,0.00042546,120]
[420429303,1776095019395,-260.05,0.00042546,120]
[420429304,1776095019475,-151.0,0.00042737,120]
[420429305,1776095019550,-200.0,0.00042751,120]
[420429306,1776095019624,-500.0,0.00042795,120]
[420429307,1776095019699,-3899.88,0.000428,90]
[420429308,1776095019773,-1000.0,0.00043,120]
[420429309,1776095019847,-500.0,0.00043,120]
[420429310,1776095019926,-500.0,0.00043,120]
[420429311,1776095020010,-1000.0,0.00043,120]
[420429312,1776095020093,-2000.0,0.00043,90]
[420429313,1776095020168,-862.09728706,0.00043,120]
[420429314,1776095020240,-634.05553643,0.00043,120]
[420429315,1776095020318,-200.0,0.00043,120]
[420429316,1776095020408,-1103.25014409,0.00043035,120]
[420429317,1776095020529,-250.0,0.00043143,110]
[420429318,1776095020645,-1017.06,0.00043178,60]
[420429319,1776095020731,-177.35,0.00043234,120]
[420429320,1776095020809,-455.0,0.0004328,30]
[420429321,1776095020887,-202.22,0.00043307,120]
[420429322,1776095020981,-250.0,0.00043354,116]
[420429323,1776095021063,-1504.906473,0.000434,47]
[420429324,1776095021164,-250.0,0.00043423,119]
[420429325,1776095021278,-250.0,0.00043445,120]
[420429326,1776095021464,-250.0,0.00043452,120]
[420429327,1776095021554,-250.0,0.00043452,120]
[420429328,1776095021667,-250.0,0.00043452,120]
[420429329,1776095021760,-250.0,0.00043452,120]
[420429330,1776095021841,-2000.0,0.000435,120]
[420429331,1776095021917,-500.0,0.00043543,69]
[420429332,1776095021991,-491.0,0.00043562,60]
[420429333,1776095022067,-491.0,0.00043562,60]
[420429334,1776095022141,-491.0,0.00043562,60]
[420429335,1776095022222,-500.0,0.00043562,60]
[420429336,1776095022327,-491.0,0.00043562,60]
[420429337,1776095022420,-500.0,0.00043562,60]
[420429338,1776095022546,-491.0,0.00043562,60]
[420429339,1776095022918,-500.0,0.00043562,60]
[420429340,1776095023047,-491.0,0.00043562,60]
[420429341,1776095023134,-500.0,0.00043562,60]
[420429342,1776095023220,-491.0,0.00043562,60]
[420429343,1776095023298,-500.0,0.00043562,60]
[420429344,1776095023387,-491.0,0.00043562,60]
[420429345,1776095023508,-500.0,0.00043562,60]
[420429346,1776095023691,-491.0,0.00043562,60]
[420429347,1776095023773,-169.83888111,0.00043562,60]
[420429348,1776095023855,-491.0,0.00043562,60]
[420429349,1776095023943,-491.0,0.00043562,60]
[420429350,1776095024059,-491.0,0.00043562,60]
[420429351,1776095024136,-491.0,0.00043562,60]
[420429352,1776095024218,-491.0,0.00043562,60]
[420429353,1776095024298,-491.0,0.00043562,60]
[420429354,1776095024378,-491.0,0.00043562,60]
[420429355,1776095024456,-491.0,0.00043562,60]
[420429356,1776095024538,-491.0,0.00043562,60]
[420429357,1776095024639,-491.0,0.00043562,60]
[420429358,1776095024722,-491.0,0.00043562,60]
[420429359,1776095024799,-491.0,0.00043562,60]
[420429360,1776095024889,-491.0,0.00043562,60]
[420429361,1776095024979,-491.0,0.00043562,60]
[420429362,1776095025077,-498.0,0.00043562,60]
[420429363,1776095025187,-150.0,0.00043562,60]
[420429364,1776095025279,-150.0,0.00043562,60]
[420429365,1776095025365,-257.84668463,0.00043562,60]
[420429366,1776095025448,-162.10283094,0.00043562,60]
[420429367,1776095025533,-150.0,0.00043562,60]
[420429368,1776095025618,-150.0,0.00043562,60]
[420429369,1776095025713,-150.0,0.00043562,60]
[420429370,1776095025799,-150.0,0.00043562,60]
[420429371,1776095025886,-179.65443235,0.00043562,60]
[420429372,1776095025968,-150.0,0.00043562,60]
[420429373,1776095026055,-150.0,0.00043562,60]
[420429374,1776095026142,-150.0,0.00043562,60]
[420429375,1776095026237,-150.0,0.00043562,60]
[420429376,1776095026380,-157.95185233,0.00043562,60]
[420429377,1776095026479,-2000.0,0.000436,120]
[420429378,1776095026574,-500.0,0.00043616,120]
[420429379,1776095026705,-1141.1,0.000437,60]
[420429380,1776095026916,-160.63,0.00043792,36]
[420429381,1776095027019,-159.59,0.00043792,42]
[420429382,1776095027102,-500.0,0.00043836,120]
[420429383,1776095027186,-500.0,0.00043836,120]
[420429384,1776095027275,-500.0,0.00043836,120]
[420429385,1776095027364,-500.0,0.00043836,120]
[420429386,1776095027468,-500.0,0.00043836,120]
[420429387,1776095027565,-472.39736966,0.00043836,120]
[420429388,1776095027649,-1500.0,0.000439,47]
[420429389,1776095027731,-200.0,0.00043972,120]
[420429390,1776095027813,-1299.0,0.00044,120]
[420429391,1776095027891,-1479.9,0.00044,120]
[420429392,1776095027970,-6011.84,0.00044,120]
[420429393,1776095028049,-2000.0,0.00044,120]
[420429394,1776095028129,-1000.0,0.00044,120]
[420429395,1776095028210,-700.0,0.00044082,120]
[420429396,1776095028294,-1700.0,0.00044082,120]
[420429397,1776095028379,-150.0,0.00044281,120]
[420429398,1776095028475,-1500.0,0.000444,47]
[420429399,1776095028577,-1509.49,0.000445,120]
[420429400,1776095028681,-6132.08,0.000445,120]
[420429401,1776095028787,-2000.0,0.000445,120]
[420429402,1776095028920,-2000.0,0.000445,120]
[420429403,1776095029008,-1000.0,0.000445,120]
[420429404,1776095029097,-500.0,0.00044575,120]
[420429405,1776095029187,-700.0,0.0004463,120]
[420429406,1776095029288,-1700.0,0.0004463,120]
[420429407,1776095029383,-3129.79,0.0004469,120]
[420429408,1776095029468,-239.94,0.00044806,120]
[420429409,1776095029551,-498.77,0.00044806,120]
[420429410,1776095029639,-500.0,0.00044849,74]
[420429411,1776095029726,-780.45969713,0.00044889,120]
[420429412,1776095029821,-747.88430113,0.00044889,120]
[420429413,1776095029905,-1500.0,0.000449,47]
[420429414,1776095029997,-3129.79,0.00044953,120]
[420429415,1776095030079,-151.0,0.00044997,120]
[420429416,1776095030159,-10862.5104,0.00045,120]
[420429417,1776095030239,-500.0,0.00045,120]
[420429418,1776095030330,-1000.0,0.00045,120]
[420429419,1776095030413,-500.0,0.00045,120]
[420429420,1776095030497,-500.0,0.00045,120]
[420429421,1776095030573,-477.0,0.00045,120]
[420429422,1776095030662,-298.52178052,0.00045,120]
[420429423,1776095030750,-500.0,0.00045,30]
[420429424,1776095030844,-1000.0,0.00045,120]
[420429425,1776095030928,-1000.0,0.00045,120]
[420429426,1776095031019,-1539.68,0.00045,120]
[420429427,1776095031102,-6254.72,0.00045,120]
[420429428,1776095031189,-2000.0,0.00045,120]
[420429429,1776095031275,-8940.0,0.00045,120]
[420429430,1776095031389,-3700.0,0.00045,30]
[420429431,1776095031570,-1000.0,0.00045,120]
[420429432,1776095031723,-1000.0,0.00045,120]
[420429433,1776095031916,-954.1876049,0.00045,120]
[420429434,1776095032017,-9466.0,0.0004502,60]
[420429435,1776095032125,-2000.0,0.0004502,120]
[420429436,1776095032214,-200.0,0.00045024,120]
[420429437,1776095032325,-151.0,0.0004503,120]
[420429438,1776095032555,-658.423098,0.0004503,120]
[420429439,1776095032696,-1342.539611,0.0004503,120]
[420429440,1776095032791,-658.423098,0.0004503,120]
[420429441,1776095032910,-1342.539611,0.0004503,120]
[420429442,1776095032990,-151.0,0.0004503,120]
[420429443,1776095033077,-658.423098,0.0004503,120]
[420429444,1776095033166,-151.0,0.0004503,120]
[420429445,1776095033273,-1342.539611,0.0004503,120]
[420429446,1776095033364,-658.423098,0.0004503,120]
[420429447,1776095033465,-151.0,0.0004503,120]
[420429448,1776095033552,-173.78664,0.0004503,120]
[420429449,1776095033629,-1342.539611,0.0004503,120]
[420429450,1776095033709,-173.78664,0.0004503,120]
[420429451,1776095033787,-151.0,0.0004503,120]
[420429452,1776095033868,-151.0,0.0004503,120]
[420429453,1776095033952,-151.0,0.0004503,120]
[420429454,1776095034041,-173.78664,0.0004503,120]
[420429455,1776095034129,-151.0,0.0004503,120]
[420429456,1776095034610,-239.022317,0.0004503,120]
[420429457,1776095034720,-151.0,0.0004503,120]
[420429458,1776095034811,-173.78664,0.0004503,120]
[420429459,1776095034899,-151.0,0.0004503,120]
[420429460,1776095034989,-239.022317,0.0004503,120]
[420429461,1776095035073,-151.0,0.0004503,120]
[420429462,1776095035153,-151.0,0.0004503,120]
[420429463,1776095035234,-239.022317,0.0004503,120]
[420429464,1776095035329,-151.0,0.0004503,120]
[420429465,1776095035423,-151.0,0.0004503,120]
[420429466,1776095035524,-176.30474,0.0004503,120]
[420429467,1776095035611,-239.022317,0.0004503,120]
[420429468,1776095035700,-151.0,0.0004503,120]
[420429469,1776095035781,-151.0,0.0004503,120]
[420429470,1776095035870,-151.0,0.0004503,120]
[420429471,1776095035968,-176.30474,0.0004503,120]
[420429472,1776095036052,-176.30474,0.0004503,120]
[420429473,1776095036141,-151.0,0.0004503,120]
[420429474,1776095036225,-151.0,0.0004503,120]
[420429475,1776095036305,-176.30474,0.0004503,120]
[420429476,1776095036382,-151.0,0.0004503,120]
[420429477,1776095036462,-151.0,0.0004503,120]
[420429478,1776095036548,-345.446302,0.0004503,120]
[420429479,1776095036646,-345.446302,0.0004503,120]
[420429480,1776095036732,-345.446302,0.0004503,120]
[420429481,1776095036833,-345.446302,0.0004503,120]
[420429482,1776095036958,-673.961631,0.0004503,120]
[420429483,1776095037069,-673.961631,0.0004503,120]
[420429484,1776095037159,-673.961631,0.0004503,120]
[420429485,1776095037254,-151.0,0.0004503,120]
[420429486,1776095037348,-673.961631,0.0004503,120]
[420429487,1776095037482,-151.0,0.0004503,120]
[420429488,1776095037865,-151.0,0.0004503,120]
[420429489,1776095037971,-171.818706,0.0004503,120]
[420429490,1776095038097,-151.0,0.0004503,120]
[420429491,1776095038231,-151.0,0.0004503,120]
[420429492,1776095038403,-171.818706,0.0004503,120]
[420429493,1776095038522,-420.734528,0.0004503,120]
[420429494,1776095038620,-681.239709,0.0004503,120]
[420429495,1776095038718,-151.0,0.0004503,120]
[420429496,1776095038812,-171.818706,0.0004503,120]
[420429497,1776095038904,-449.367358,0.0004503,120]
[420429498,1776095038991,-420.734528,0.0004503,120]
[420429499,1776095039078,-681.239709,0.0004503,120]
[420429500,1776095039181,-151.0,0.0004503,120]
[420429501,1776095039299,-171.818706,0.0004503,120]
[420429502,1776095039504,-449.367358,0.0004503,120]
[420429503,1776095039620,-420.734528,0.0004503,120]
[420429504,1776095039738,-228.354176,0.0004503,120]
[420429505,1776095039829,-151.0,0.0004503,120]
[420429506,1776095039957,-681.239709,0.0004503,120]
[420429507,1776095040053,-212.712339,0.0004503,30]
[420429508,1776095040134,-151.0,0.0004503,120]
[420429509,1776095040223,-449.367358,0.0004503,120]
[420429510,1776095040311,-420.734528,0.0004503,120]
[420429511,1776095040402,-228.354176,0.0004503,120]
[420429512,1776095040536,-681.239709,0.0004503,120]
[420429513,1776095040638,-238.806235,0.0004503,30]
[420429514,1776095040739,-212.712339,0.0004503,30]
[420429515,1776095040835,-755.801625,0.0004503,120]
[420429516,1776095040944,-151.0,0.0004503,120]
[420429517,1776095041066,-449.367358,0.0004503,120]
[420429518,1776095041177,-151.0,0.0004503,120]
[420429519,1776095041262,-228.354176,0.0004503,120]
[420429520,1776095041352,-238.806235,0.0004503,30]
[420429521,1776095041447,-151.0,0.0004503,120]
[420429522,1776095041533,-755.801625,0.0004503,120]
[420429523,1776095041637,-212.712339,0.0004503,30]
[420429524,1776095041720,-151.0,0.0004503,120]
[420429525,1776095041804,-151.0,0.0004503,120]
[420429526,1776095041938,-151.0,0.0004503,120]
[420429527,1776095042042,-228.354176,0.0004503,120]
[420429528,1776095042137,-238.806235,0.0004503,30]
[420429529,1776095042216,-151.0,0.0004503,120]
[420429530,1776095042294,-755.801625,0.0004503,120]
[420429531,1776095042380,-151.0,0.0004503,120]
[420429532,1776095042458,-212.712339,0.0004503,30]
[420429533,1776095042538,-238.806235,0.0004503,30]
[420429534,1776095042635,-755.801625,0.0004503,120]
[420429535,1776095042727,-560.656803,0.0004503,120]
[420429536,1776095042833,-151.0,0.0004503,120]
[420429537,1776095042926,-151.0,0.0004503,120]
[420429538,1776095043008,-560.656803,0.0004503,120]
[420429539,1776095043114,-151.0,0.0004503,120]
[420429540,1776095043211,-864.462822,0.0004503,120]
[420429541,1776095043313,-151.0,0.0004503,120]
[420429542,1776095043403,-560.656803,0.0004503,120]
[420429543,1776095043489,-864.462822,0.0004503,120]
[420429544,1776095043577,-560.656803,0.0004503,120]
[420429545,1776095043659,-864.462822,0.0004503,120]
[420429546,1776095043735,-864.462822,0.0004503,120]
[420429547,1776095043830,-151.0,0.0004503,120]
[420429548,1776095043912,-692.420755,0.0004503,120]
[420429549,1776095043989,-692.420755,0.0004503,120]
[420429550,1776095044066,-236.11041,0.0004503,120]
[420429551,1776095044151,-151.0,0.0004503,120]
[420429552,1776095044236,-236.11041,0.0004503,120]
[420429553,1776095044319,-692.420755,0.0004503,120]
[420429554,1776095044401,-151.0,0.0004503,120]
[420429555,1776095044488,-236.11041,0.0004503,120]
[420429556,1776095044571,-692.420755,0.0004503,120]
[420429557,1776095044662,-1436.592308,0.0004503,120]
[420429558,1776095044761,-236.11041,0.0004503,120]
[420429559,1776095044880,-1436.592308,0.0004503,120]
[420429560,1776095044958,-2683.142456,0.0004503,120]
[420429561,1776095045036,-1436.592308,0.0004503,120]
[420429562,1776095045118,-2683.142456,0.0004503,120]
[420429563,1776095045221,-1436.592308,0.0004503,120]
[420429564,1776095045343,-2683.142456,0.0004503,120]
[420429565,1776095045454,-2683.142456,0.0004503,120]
[420429566,1776095045570,-151.0,0.0004503,120]
[420429567,1776095045688,-151.0,0.0004503,120]
[420429568,1776095045786,-151.0,0.0004503,120]
[420429569,1776095045903,-151.0,0.0004503,120]
[420429570,1776095045990,-190.521104,0.0004503,120]
[420429571,1776095046072,-190.521104,0.0004503,120]
[420429572,1776095046151,-190.521104,0.0004503,120]
[420429573,1776095046656,-190.521104,0.0004503,120]
[420429574,1776095046734,-151.0,0.0004503,120]
[420429575,1776095046814,-151.0,0.0004503,120]
[420429576,1776095046890,-151.0,0.0004503,120]
[420429577,1776095046971,-151.0,0.0004503,120]
[420429578,1776095047054,-151.0,0.0004503,120]
[420429579,1776095047143,-151.0,0.0004503,120]
[420429580,1776095047234,-151.0,0.0004503,120]
[420429581,1776095047335,-204.983743,0.0004503,120]
[420429582,1776095047417,-462.683087,0.0004503,120]
[420429583,1776095047511,-525.426642,0.0004503,120]
[420429584,1776095047599,-204.983743,0.0004503,120]
[420429585,1776095047689,-462.683087,0.0004503,120]
[420429586,1776095047789,-151.0,0.0004503,120]
[420429587,1776095047869,-525.426642,0.0004503,120]
[420429588,1776095047961,-204.983743,0.0004503,120]
[420429589,1776095048047,-201.218761,0.0004503,120]
[420429590,1776095048136,-462.683087,0.0004503,120]
[420429591,1776095048230,-1302.21989,0.0004503,120]
[420429592,1776095048352,-151.0,0.0004503,120]
[420429593,1776095048481,-151.0,0.0004503,120]
[420429594,1776095048567,-525.426642,0.0004503,120]
[420429595,1776095048656,-498.841187,0.0004503,120]
[420429596,1776095048744,-204.983743,0.0004503,120]
[420429597,1776095048864,-201.218761,0.0004503,120]
[420429598,1776095048970,-462.683087,0.0004503,120]
[420429599,1776095049050,-1302.21989,0.0004503,120]
[420429600,1776095049144,-151.0,0.0004503,120]